[Event "*** Titled Tuesday Blitz"]
[Site "Chess.com"]
[Date "2021.04.27"]
[Round "11"]
[White "Piotrek1979"]
[Black "Omk124"]
[Result "0-1"]
[WhiteElo "2343"]
[BlackElo "2534"]
[TimeControl "180+1"]
[EndTime "12:04:06 PDT"]
[Termination "Omk124 won on time"]

1. Nf3 {[%clk 0:03:00.9]} 1... Nf6 {[%clk 0:02:58.6]} 2. g3 {[%clk 0:03:00.7]}
2... g6 {[%clk 0:02:58.8]} 3. Bg2 {[%clk 0:03:01.6]} 3... Bg7 {[%clk 0:02:59.7]}
4. O-O {[%clk 0:03:02.1]} 4... O-O {[%clk 0:03:00.3]} 5. c4 {[%clk 0:03:02.4]}
5... c6 {[%clk 0:03:00.4]} 6. b3 {[%clk 0:02:54.4]} 6... d5 {[%clk 0:02:59.6]}
7. Bb2 {[%clk 0:02:54.6]} 7... Nbd7 {[%clk 0:02:55.4]} 8. cxd5 {[%clk 0:02:53]}
8... cxd5 {[%clk 0:02:54.5]} 9. d3 {[%clk 0:02:38.5]} 9... b6 {[%clk 0:02:54.3]}
10. Nbd2 {[%clk 0:02:36.3]} 10... Bb7 {[%clk 0:02:52.9]} 11. b4 {[%clk
0:02:34.8]} 11... Re8 {[%clk 0:02:51.5]} 12. Qb3 {[%clk 0:02:26.4]} 12... e5
{[%clk 0:02:48.9]} 13. e3 {[%clk 0:02:25.7]} 13... Qe7 {[%clk 0:02:47.8]} 14.
Rac1 {[%clk 0:02:18.6]} 14... Qd6 {[%clk 0:02:46.3]} 15. d4 {[%clk 0:01:59]}
15... e4 {[%clk 0:02:40]} 16. Ne5 {[%clk 0:01:58.3]} 16... Nh5 {[%clk
0:02:40.3]} 17. Nxd7 {[%clk 0:01:56]} 17... Qxd7 {[%clk 0:02:41.2]} 18. a4
{[%clk 0:01:51.6]} 18... Nf6 {[%clk 0:02:27.8]} 19. b5 {[%clk 0:01:50.6]} 19...
Ng4 {[%clk 0:02:22.6]} 20. Ba3 {[%clk 0:01:46.2]} 20... Nh6 {[%clk 0:02:20.1]}
21. Rc3 {[%clk 0:01:35.7]} 21... Rac8 {[%clk 0:02:18.2]} 22. Rfc1 {[%clk
0:01:34.4]} 22... Rxc3 {[%clk 0:02:18]} 23. Rxc3 {[%clk 0:01:33.6]} 23... Rc8
{[%clk 0:02:18.2]} 24. Qc2 {[%clk 0:01:32.4]} 24... Nf5 {[%clk 0:02:15.8]} 25.
Nb1 {[%clk 0:01:11.1]} 25... Nd6 {[%clk 0:02:07.3]} 26. Bxd6 {[%clk 0:01:06.1]}
26... Rxc3 {[%clk 0:02:07.1]} 27. Nxc3 {[%clk 0:01:00.6]} 27... Qxd6 {[%clk
0:02:08]} 28. Qb3 {[%clk 0:01:00.6]} 28... Bf8 {[%clk 0:02:07.3]} 29. f3 {[%clk
0:00:57.2]} 29... Bh6 {[%clk 0:01:36.6]} 30. Kf2 {[%clk 0:00:50.6]} 30... Qe6
{[%clk 0:00:50.6]} 31. fxe4 {[%clk 0:00:48.4]} 31... Qf6+ {[%clk 0:00:48.4]} 32.
Ke2 {[%clk 0:00:48]} 32... dxe4 {[%clk 0:00:47.6]} 33. Bxe4 {[%clk 0:00:29.2]}
33... Bc8 {[%clk 0:00:38.2]} 34. Nd5 {[%clk 0:00:25.4]} 34... Bg4+ {[%clk
0:00:37.2]} 35. Kd2 {[%clk 0:00:16.6]} 35... Qf2+ {[%clk 0:00:35.9]} 36. Kc3
{[%clk 0:00:15.8]} 36... Bxe3 {[%clk 0:00:33.7]} 37. Kb4 {[%clk 0:00:02.6]}
37... Bxd4 {[%clk 0:00:29.2]} 38. Ne7+ {[%clk 0:00:02.2]} 38... Kg7 {[%clk
0:00:29.2]} 0-1

[Event "*** Titled Tuesday Blitz"]
[Site "Chess.com"]
[Date "2021.04.27"]
[Round "11"]
[White "beto-betun"]
[Black "kakorrhaphiophobie"]
[Result "0-1"]
[WhiteElo "2216"]
[BlackElo "2302"]
[TimeControl "180+1"]
[EndTime "12:04:06 PDT"]
[Termination "kakorrhaphiophobie won by resignation"]

1. d4 {[%clk 0:03:00.9]} 1... f5 {[%clk 0:02:59.6]} 2. Nc3 {[%clk 0:02:58.9]}
2... Nf6 {[%clk 0:02:57.8]} 3. Bg5 {[%clk 0:02:59.2]} 3... d5 {[%clk 0:02:58.4]}
4. f3 {[%clk 0:02:21]} 4... c5 {[%clk 0:02:56]} 5. e4 {[%clk 0:02:17.5]} 5...
Nc6 {[%clk 0:02:56.2]} 6. Bb5 {[%clk 0:02:10.1]} 6... fxe4 {[%clk 0:02:55.8]} 7.
fxe4 {[%clk 0:02:10.4]} 7... cxd4 {[%clk 0:02:23.5]} 8. Bxf6 {[%clk 0:02:05.6]}
8... exf6 {[%clk 0:02:11.5]} 9. Nxd5 {[%clk 0:02:03.6]} 9... a6 {[%clk
0:01:59.1]} 10. Bc4 {[%clk 0:01:53.2]} 10... Bc5 {[%clk 0:01:16.4]} 11. Nf3
{[%clk 0:01:50.5]} 11... Qa5+ {[%clk 0:01:11.6]} 12. c3 {[%clk 0:01:40.5]} 12...
dxc3 {[%clk 0:01:08.5]} 13. bxc3 {[%clk 0:01:41.4]} 13... Bg4 {[%clk 0:01:01.4]}
14. h3 {[%clk 0:01:33.9]} 14... Bh5 {[%clk 0:00:59.5]} 15. g4 {[%clk 0:01:22.6]}
15... Bg6 {[%clk 0:00:54.1]} 16. Nd4 {[%clk 0:01:05.4]} 16... O-O-O {[%clk
0:00:48.3]} 17. O-O {[%clk 0:01:03.9]} 17... Bxe4 {[%clk 0:00:42.5]} 18. Re1
{[%clk 0:00:25.4]} 18... Bxd5 {[%clk 0:00:36.1]} 19. Bxd5 {[%clk 0:00:20.6]}
19... Rxd5 {[%clk 0:00:36.1]} 20. Qf3 {[%clk 0:00:18.9]} 20... Rhd8 {[%clk
0:00:30.2]} 21. Kg2 {[%clk 0:00:14]} 21... Bxd4 {[%clk 0:00:25.3]} 22. cxd4
{[%clk 0:00:14.9]} 22... Rxd4 {[%clk 0:00:22.8]} 23. Rac1 {[%clk 0:00:12.2]}
23... Qd5 {[%clk 0:00:22.6]} 24. Qxd5 {[%clk 0:00:10.7]} 24... R8xd5 {[%clk
0:00:22.9]} 25. Re8+ {[%clk 0:00:09.9]} 25... Rd8 {[%clk 0:00:23.3]} 26. Re2
{[%clk 0:00:09.6]} 26... Rd2 {[%clk 0:00:23.2]} 27. Rc2 {[%clk 0:00:10.1]} 27...
Rxc2 {[%clk 0:00:22.4]} 28. Rxc2 {[%clk 0:00:09.9]} 28... Kc7 {[%clk 0:00:23]}
29. Kf3 {[%clk 0:00:10.3]} 29... Rd7 {[%clk 0:00:23.5]} 30. Kf4 {[%clk
0:00:10.8]} 30... Rd5 {[%clk 0:00:23.2]} 31. h4 {[%clk 0:00:11.3]} 31... Kd6
{[%clk 0:00:22.8]} 32. g5 {[%clk 0:00:11.2]} 32... f5 {[%clk 0:00:22.3]} 33. h5
{[%clk 0:00:10.8]} 33... g6 {[%clk 0:00:22.8]} 34. hxg6 {[%clk 0:00:10.6]} 34...
hxg6 {[%clk 0:00:23.7]} 35. Rh2 {[%clk 0:00:11]} 35... Rd4+ {[%clk 0:00:24]} 36.
Ke3 {[%clk 0:00:10.6]} 36... Rg4 {[%clk 0:00:24.2]} 37. Rh6 {[%clk 0:00:07.9]}
37... Rxg5 {[%clk 0:00:23.9]} 38. Kf4 {[%clk 0:00:08.8]} 38... Rg4+ {[%clk
0:00:24.3]} 39. Kf3 {[%clk 0:00:09.3]} 39... Ne5+ {[%clk 0:00:24.2]} 40. Kf2
{[%clk 0:00:08.9]} 40... Nc6 {[%clk 0:00:25.1]} 41. Rh7 {[%clk 0:00:08.6]} 41...
b6 {[%clk 0:00:25.6]} 42. a4 {[%clk 0:00:08.7]} 42... Kc5 {[%clk 0:00:26]} 43.
Rh8 {[%clk 0:00:09.3]} 43... a5 {[%clk 0:00:26.4]} 44. Rc8 {[%clk 0:00:08.5]}
44... Rxa4 {[%clk 0:00:26.5]} 0-1

[Event "*** Titled Tuesday Blitz"]
[Site "Chess.com"]
[Date "2021.04.27"]
[Round "11"]
[White "microbear"]
[Black "Chernov_Alexander_A"]
[Result "1/2-1/2"]
[WhiteElo "2207"]
[BlackElo "2322"]
[TimeControl "180+1"]
[EndTime "12:04:07 PDT"]
[Termination "Game drawn by repetition"]

1. e4 {[%clk 0:03:00.9]} 1... c6 {[%clk 0:02:59.5]} 2. d4 {[%clk 0:02:59.4]}
2... d5 {[%clk 0:02:59.5]} 3. f3 {[%clk 0:02:59.8]} 3... dxe4 {[%clk 0:02:58.3]}
4. fxe4 {[%clk 0:03:00.7]} 4... e5 {[%clk 0:02:58.4]} 5. Nf3 {[%clk 0:03:00.4]}
5... Bg4 {[%clk 0:02:58.1]} 6. Bc4 {[%clk 0:03:00]} 6... Nd7 {[%clk 0:02:48.3]}
7. O-O {[%clk 0:02:55.7]} 7... Ngf6 {[%clk 0:02:47.3]} 8. c3 {[%clk 0:02:51]}
8... Bd6 {[%clk 0:02:44.7]} 9. Be3 {[%clk 0:02:09.9]} 9... O-O {[%clk
0:02:42.8]} 10. Nbd2 {[%clk 0:02:06.2]} 10... Qe7 {[%clk 0:02:38.4]} 11. h3
{[%clk 0:01:52.5]} 11... Bh5 {[%clk 0:02:36.2]} 12. Qb3 {[%clk 0:01:29.2]} 12...
b5 {[%clk 0:02:34.4]} 13. Bd3 {[%clk 0:01:29.3]} 13... a6 {[%clk 0:02:24.9]} 14.
a4 {[%clk 0:01:27.3]} 14... c5 {[%clk 0:02:24]} 15. axb5 {[%clk 0:01:24.1]}
15... axb5 {[%clk 0:02:08.1]} 16. Qxb5 {[%clk 0:01:17.6]} 16... Rxa1 {[%clk
0:02:00.5]} 17. Rxa1 {[%clk 0:01:18.5]} 17... exd4 {[%clk 0:02:00.2]} 18. cxd4
{[%clk 0:01:18.2]} 18... Bxf3 {[%clk 0:01:45.7]} 19. Nxf3 {[%clk 0:01:17.5]}
19... Nxe4 {[%clk 0:01:41.5]} 20. Ra7 {[%clk 0:00:58.4]} 20... Nef6 {[%clk
0:01:23.6]} 21. Bf2 {[%clk 0:00:53.4]} 21... h6 {[%clk 0:01:09.2]} 22. Rb7
{[%clk 0:00:38.7]} 22... cxd4 {[%clk 0:00:53.6]} 23. Nxd4 {[%clk 0:00:38.4]}
23... Qe5 {[%clk 0:00:51.9]} 24. Rxd7 {[%clk 0:00:31.5]} 24... Nxd7 {[%clk
0:00:19.2]} 25. Qxd7 {[%clk 0:00:28.5]} 25... Rb8 {[%clk 0:00:18.6]} 26. b3
{[%clk 0:00:16.5]} 26... g6 {[%clk 0:00:16.4]} 27. Qg4 {[%clk 0:00:14.1]} 27...
h5 {[%clk 0:00:15.3]} 28. Qd1 {[%clk 0:00:13.9]} 28... Bc5 {[%clk 0:00:13.6]}
29. Bc4 {[%clk 0:00:12.5]} 29... Rd8 {[%clk 0:00:11.7]} 30. Qc2 {[%clk
0:00:10.5]} 30... Bxd4 {[%clk 0:00:10.7]} 31. Qxg6+ {[%clk 0:00:10.5]} 31... Kh8
{[%clk 0:00:09]} 32. Qh6+ {[%clk 0:00:10.1]} 32... Kg8 {[%clk 0:00:08.5]} 33.
Qg6+ {[%clk 0:00:10.3]} 33... Kh8 {[%clk 0:00:08.5]} 34. Qh6+ {[%clk 0:00:06.9]}
34... Kg8 {[%clk 0:00:08.4]} 35. Qg6+ {[%clk 0:00:06.9]} 1/2-1/2

[Event "*** Titled Tuesday Blitz"]
[Site "Chess.com"]
[Date "2021.04.27"]
[Round "11"]
[White "vanyakuba"]
[Black "Karttunen"]
[Result "1-0"]
[WhiteElo "2408"]
[BlackElo "2496"]
[TimeControl "180+1"]
[EndTime "12:04:09 PDT"]
[Termination "vanyakuba won by checkmate"]

1. e4 {[%clk 0:03:00.9]} 1... e5 {[%clk 0:02:58.8]} 2. Nf3 {[%clk 0:02:59.2]}
2... Nf6 {[%clk 0:02:58.3]} 3. Nc3 {[%clk 0:02:57]} 3... Nc6 {[%clk 0:02:54]} 4.
g3 {[%clk 0:02:57.1]} 4... d5 {[%clk 0:02:49.1]} 5. exd5 {[%clk 0:02:56.3]} 5...
Nxd5 {[%clk 0:02:49]} 6. d3 {[%clk 0:02:56.6]} 6... Bb4 {[%clk 0:02:42.4]} 7.
Bd2 {[%clk 0:02:56.2]} 7... O-O {[%clk 0:02:34.6]} 8. Bg2 {[%clk 0:02:55.8]}
8... Nxc3 {[%clk 0:02:29.4]} 9. bxc3 {[%clk 0:02:55.4]} 9... Bd6 {[%clk
0:02:25.8]} 10. O-O {[%clk 0:02:55.1]} 10... h6 {[%clk 0:02:18.6]} 11. h3 {[%clk
0:02:52.4]} 11... f5 {[%clk 0:02:17.5]} 12. Re1 {[%clk 0:02:50.8]} 12... Bd7
{[%clk 0:02:12.8]} 13. Rb1 {[%clk 0:02:46.4]} 13... Rb8 {[%clk 0:02:10.4]} 14.
Nh4 {[%clk 0:02:40.7]} 14... Kh7 {[%clk 0:02:05.1]} 15. Qh5 {[%clk 0:02:16.3]}
15... Be8 {[%clk 0:01:54.9]} 16. Qf3 {[%clk 0:01:54.9]} 16... Qf6 {[%clk
0:01:30.6]} 17. Qd5 {[%clk 0:01:19.9]} 17... g5 {[%clk 0:01:10.4]} 18. Nxf5
{[%clk 0:01:16.3]} 18... Bg6 {[%clk 0:01:01.8]} 19. g4 {[%clk 0:01:16.4]} 19...
Ne7 {[%clk 0:00:59.5]} 20. Nxe7 {[%clk 0:01:06.6]} 20... c6 {[%clk 0:00:40]} 21.
Qc4 {[%clk 0:00:45.4]} 21... Qxf2+ {[%clk 0:00:37.9]} 22. Kh1 {[%clk 0:00:45.4]}
22... Bxe7 {[%clk 0:00:37.1]} 23. Be3 {[%clk 0:00:40.5]} 23... Qg3 {[%clk
0:00:33.6]} 24. Bg1 {[%clk 0:00:31.7]} 24... Rf6 {[%clk 0:00:25.6]} 25. Bh2
{[%clk 0:00:25.6]} 25... Qf2 {[%clk 0:00:23.6]} 26. Rf1 {[%clk 0:00:12]} 26...
Qxc2 {[%clk 0:00:22.4]} 27. Rxf6 {[%clk 0:00:07.9]} 27... Qxb1+ {[%clk
0:00:20.4]} 28. Rf1 {[%clk 0:00:08]} 28... Qxd3 {[%clk 0:00:20.4]} 29. Qe6
{[%clk 0:00:08.6]} 29... Re8 {[%clk 0:00:17.3]} 30. Bxe5 {[%clk 0:00:05.8]}
30... Bf8 {[%clk 0:00:12.8]} 31. Rf7+ {[%clk 0:00:05]} 31... Kg8 {[%clk
0:00:11.1]} 32. Re7+ {[%clk 0:00:02.9]} 32... Bf7 {[%clk 0:00:05.2]} 33. Qxf7#
{[%clk 0:00:03.1]} 1-0

[Event "*** Titled Tuesday Blitz"]
[Site "Chess.com"]
[Date "2021.04.27"]
[Round "11"]
[White "davigator"]
[Black "mary-sanna"]
[Result "1-0"]
[WhiteElo "2416"]
[BlackElo "2136"]
[TimeControl "180+1"]
[EndTime "12:04:09 PDT"]
[Termination "davigator won on time"]

1. e4 {[%clk 0:03:00.9]} 1... c5 {[%clk 0:02:59.9]} 2. Nf3 {[%clk 0:02:59.9]}
2... Nc6 {[%clk 0:03:00.5]} 3. d4 {[%clk 0:02:59.1]} 3... cxd4 {[%clk 0:03:01]}
4. Nxd4 {[%clk 0:02:58.5]} 4... g6 {[%clk 0:03:01.7]} 5. Nxc6 {[%clk 0:02:55.9]}
5... bxc6 {[%clk 0:02:59.7]} 6. Qd4 {[%clk 0:02:54.8]} 6... Nf6 {[%clk
0:02:54.5]} 7. e5 {[%clk 0:02:55]} 7... Nd5 {[%clk 0:02:47.7]} 8. Bc4 {[%clk
0:02:52.8]} 8... Nc7 {[%clk 0:02:40.4]} 9. Nd2 {[%clk 0:02:50.5]} 9... Bg7
{[%clk 0:02:37.6]} 10. Qe4 {[%clk 0:02:44.1]} 10... O-O {[%clk 0:02:26.5]} 11.
O-O {[%clk 0:02:41.4]} 11... Ba6 {[%clk 0:02:21.2]} 12. Nf3 {[%clk 0:02:38.5]}
12... Bxc4 {[%clk 0:02:08.2]} 13. Qxc4 {[%clk 0:02:38.2]} 13... Ne6 {[%clk
0:02:07.4]} 14. Qh4 {[%clk 0:02:36.2]} 14... Re8 {[%clk 0:01:48.7]} 15. Rd1
{[%clk 0:02:34.3]} 15... Qc7 {[%clk 0:01:46.9]} 16. Bh6 {[%clk 0:02:17.7]} 16...
Bxe5 {[%clk 0:01:26.3]} 17. Nxe5 {[%clk 0:02:16.6]} 17... Qxe5 {[%clk
0:01:27.2]} 18. Rxd7 {[%clk 0:02:16.4]} 18... Qxb2 {[%clk 0:01:26.8]} 19. Re1
{[%clk 0:02:07.7]} 19... Qc3 {[%clk 0:01:19.6]} 20. f3 {[%clk 0:02:04.9]} 20...
Rad8 {[%clk 0:01:03.1]} 21. Rxa7 {[%clk 0:01:58.2]} 21... Rd4 {[%clk 0:00:55.5]}
22. Qf2 {[%clk 0:01:57.1]} 22... Rd2 {[%clk 0:00:55.2]} 23. Qxd2 {[%clk
0:01:48.2]} 23... Qc5+ {[%clk 0:00:50.4]} 24. Be3 {[%clk 0:01:46.7]} 24... Qc4
{[%clk 0:00:45.7]} 25. Qd3 {[%clk 0:01:42]} 25... Qb4 {[%clk 0:00:44.4]} 26. Bf2
{[%clk 0:01:32.9]} 26... Rd8 {[%clk 0:00:31.1]} 27. Qe4 {[%clk 0:01:30]} 27...
Qd2 {[%clk 0:00:23.8]} 28. Rxe7 {[%clk 0:01:24.1]} 28... Kf8 {[%clk 0:00:19.2]}
29. Ra7 {[%clk 0:01:10.4]} 29... Kg7 {[%clk 0:00:18.3]} 30. Qe5+ {[%clk
0:01:08.6]} 30... Kg8 {[%clk 0:00:17.8]} 31. h4 {[%clk 0:01:02.9]} 31... h5
{[%clk 0:00:17.3]} 32. Qe4 {[%clk 0:01:00.3]} 32... Nf4 {[%clk 0:00:15.5]} 33.
Qe7 {[%clk 0:00:51.6]} 33... Qd5 {[%clk 0:00:11.5]} 34. a4 {[%clk 0:00:41.9]}
34... Rb8 {[%clk 0:00:10.9]} 35. Rd7 {[%clk 0:00:32.2]} 35... Qc4 {[%clk
0:00:09.4]} 36. Rd4 {[%clk 0:00:29.1]} 36... Qxc2 {[%clk 0:00:06.8]} 37. Rxf4
{[%clk 0:00:28.1]} 37... f5 {[%clk 0:00:03.5]} 38. Qe6+ {[%clk 0:00:26.1]} 38...
Kh7 {[%clk 0:00:02.4]} 39. Qf7+ {[%clk 0:00:25.2]} 39... Kh6 {[%clk 0:00:02.3]}
40. Be3 {[%clk 0:00:24.9]} 1-0

[Event "*** Titled Tuesday Blitz"]
[Site "Chess.com"]
[Date "2021.04.27"]
[Round "11"]
[White "secretsuperstar7"]
[Black "Zipa5"]
[Result "1-0"]
[WhiteElo "2215"]
[BlackElo "1882"]
[TimeControl "180+1"]
[EndTime "12:04:09 PDT"]
[Termination "secretsuperstar7 won by checkmate"]

1. d4 {[%clk 0:03:00.9]} 1... g6 {[%clk 0:02:58.2]} 2. c4 {[%clk 0:02:58.5]}
2... Bg7 {[%clk 0:02:56.9]} 3. Nf3 {[%clk 0:02:56.4]} 3... d6 {[%clk 0:02:56]}
4. Nc3 {[%clk 0:02:54.3]} 4... Nd7 {[%clk 0:02:55.2]} 5. e4 {[%clk 0:02:51.5]}
5... e5 {[%clk 0:02:54.5]} 6. Be3 {[%clk 0:02:48]} 6... Nh6 {[%clk 0:02:52.2]}
7. h3 {[%clk 0:02:46.7]} 7... f6 {[%clk 0:02:44.4]} 8. Be2 {[%clk 0:02:37.4]}
8... Nf7 {[%clk 0:02:40.9]} 9. O-O {[%clk 0:02:36]} 9... c6 {[%clk 0:02:39.2]}
10. Qc2 {[%clk 0:02:30.2]} 10... O-O {[%clk 0:02:37.5]} 11. Rad1 {[%clk
0:02:28.7]} 11... Qe7 {[%clk 0:02:34.2]} 12. Rfe1 {[%clk 0:02:18.4]} 12... Bh6
{[%clk 0:02:20.1]} 13. Bxh6 {[%clk 0:02:02.3]} 13... Nxh6 {[%clk 0:02:19.6]} 14.
Qd2 {[%clk 0:01:57.6]} 14... Kg7 {[%clk 0:02:18.3]} 15. Nh2 {[%clk 0:01:40.7]}
15... Nf7 {[%clk 0:02:12.8]} 16. h4 {[%clk 0:01:32.1]} 16... exd4 {[%clk
0:02:05.1]} 17. Qxd4 {[%clk 0:01:30.8]} 17... Nc5 {[%clk 0:01:58.5]} 18. h5
{[%clk 0:01:22.4]} 18... Qe5 {[%clk 0:01:52.2]} 19. Qe3 {[%clk 0:00:56.8]} 19...
f5 {[%clk 0:01:43.4]} 20. f4 {[%clk 0:00:49.6]} 20... Qe7 {[%clk 0:01:32.2]} 21.
Qd4+ {[%clk 0:00:41]} 21... Qf6 {[%clk 0:01:18.7]} 22. e5 {[%clk 0:00:38.8]}
22... dxe5 {[%clk 0:01:01.4]} 23. Qxc5 {[%clk 0:00:38.4]} 23... exf4 {[%clk
0:00:59.6]} 24. Qd4 {[%clk 0:00:32]} 24... g5 {[%clk 0:00:54.6]} 25. Nf3 {[%clk
0:00:27.2]} 25... h6 {[%clk 0:00:52]} 26. Qxf6+ {[%clk 0:00:25]} 26... Kxf6
{[%clk 0:00:51]} 27. Nd4 {[%clk 0:00:25.1]} 27... Bd7 {[%clk 0:00:42.4]} 28. c5
{[%clk 0:00:22.9]} 28... Rad8 {[%clk 0:00:37.8]} 29. Bc4 {[%clk 0:00:21.1]}
29... Ne5 {[%clk 0:00:34.2]} 30. Bb3 {[%clk 0:00:20.2]} 30... Bc8 {[%clk
0:00:18.3]} 31. Nf3 {[%clk 0:00:18.8]} 31... Ng4 {[%clk 0:00:15.8]} 32. Rd6+
{[%clk 0:00:16.8]} 32... Kg7 {[%clk 0:00:15.4]} 33. Re7+ {[%clk 0:00:15.6]}
33... Kh8 {[%clk 0:00:11.8]} 34. Ne5 {[%clk 0:00:13.7]} 34... Nxe5 {[%clk
0:00:07.1]} 35. Rxh6# {[%clk 0:00:13]} 1-0

[Event "*** Titled Tuesday Blitz"]
[Site "Chess.com"]
[Date "2021.04.27"]
[Round "11"]
[White "RamyresCoelho"]
[Black "grandcoach"]
[Result "1/2-1/2"]
[WhiteElo "2161"]
[BlackElo "2233"]
[TimeControl "180+1"]
[EndTime "12:04:10 PDT"]
[Termination "Game drawn by repetition"]

1. e4 {[%clk 0:02:46.6]} 1... c5 {[%clk 0:02:57]} 2. Nf3 {[%clk 0:02:46.6]} 2...
Nc6 {[%clk 0:02:55.7]} 3. d4 {[%clk 0:02:46.6]} 3... cxd4 {[%clk 0:02:56.2]} 4.
Nxd4 {[%clk 0:02:46.5]} 4... e5 {[%clk 0:02:56.8]} 5. Nxc6 {[%clk 0:02:46.3]}
5... dxc6 {[%clk 0:02:49.3]} 6. Qxd8+ {[%clk 0:02:45.6]} 6... Kxd8 {[%clk
0:02:50.2]} 7. Bc4 {[%clk 0:02:46.3]} 7... Ke8 {[%clk 0:02:43.7]} 8. O-O {[%clk
0:02:42.8]} 8... Bc5 {[%clk 0:02:42.7]} 9. Be3 {[%clk 0:02:41]} 9... Bxe3 {[%clk
0:02:42.2]} 10. fxe3 {[%clk 0:02:41.9]} 10... Nf6 {[%clk 0:02:42]} 11. Nc3
{[%clk 0:02:42.1]} 11... b5 {[%clk 0:02:41.1]} 12. Bb3 {[%clk 0:02:39.8]} 12...
a5 {[%clk 0:02:39]} 13. a3 {[%clk 0:02:32.6]} 13... Ba6 {[%clk 0:02:27.1]} 14.
Rf5 {[%clk 0:02:29]} 14... Ke7 {[%clk 0:02:23.8]} 15. Rxe5+ {[%clk 0:02:28.7]}
15... Kd6 {[%clk 0:02:23.2]} 16. Rg5 {[%clk 0:02:22.5]} 16... b4 {[%clk
0:02:06]} 17. e5+ {[%clk 0:02:12.1]} 17... Ke7 {[%clk 0:01:58.7]} 18. exf6+
{[%clk 0:02:09.4]} 18... gxf6 {[%clk 0:01:59.3]} 19. Rxa5 {[%clk 0:02:07.3]}
19... bxc3 {[%clk 0:01:57.5]} 20. bxc3 {[%clk 0:02:08.2]} 20... Rhg8 {[%clk
0:01:43.6]} 21. Rd1 {[%clk 0:01:55]} 21... Bb5 {[%clk 0:01:32.7]} 22. Rxa8
{[%clk 0:01:49.1]} 22... Rxa8 {[%clk 0:01:33.6]} 23. a4 {[%clk 0:01:48.4]} 23...
Be2 {[%clk 0:01:29.4]} 24. Rd2 {[%clk 0:01:47.1]} 24... Bg4 {[%clk 0:01:26.9]}
25. h3 {[%clk 0:01:45.2]} 25... Bf5 {[%clk 0:01:25.1]} 26. Rd4 {[%clk
0:01:41.5]} 26... Rg8 {[%clk 0:01:22.2]} 27. Kh2 {[%clk 0:01:34.7]} 27... Be6
{[%clk 0:01:12.9]} 28. Rb4 {[%clk 0:01:28.7]} 28... Kd6 {[%clk 0:01:04.1]} 29.
Bxe6 {[%clk 0:01:22.6]} 29... fxe6 {[%clk 0:01:03.7]} 30. Rb7 {[%clk 0:01:21.3]}
30... h5 {[%clk 0:01:02.1]} 31. Ra7 {[%clk 0:01:04.8]} 31... Rg5 {[%clk
0:01:00.7]} 32. Ra8 {[%clk 0:00:57.8]} 32... Rc5 {[%clk 0:00:59.6]} 33. Rh8
{[%clk 0:00:52.8]} 33... Rxc3 {[%clk 0:00:53.9]} 34. Rxh5 {[%clk 0:00:52.3]}
34... Rxe3 {[%clk 0:00:54.5]} 35. c4 {[%clk 0:00:49]} 35... f5 {[%clk
0:00:50.9]} 36. Rh4 {[%clk 0:00:41.8]} 36... Ra3 {[%clk 0:00:45.3]} 37. Kg1
{[%clk 0:00:40.1]} 37... c5 {[%clk 0:00:42.1]} 38. Kf2 {[%clk 0:00:33.1]} 38...
Rxa4 {[%clk 0:00:42.2]} 39. Ke3 {[%clk 0:00:33.5]} 39... Ke5 {[%clk 0:00:41.5]}
40. Kd3 {[%clk 0:00:32]} 40... Ra3+ {[%clk 0:00:41.6]} 41. Ke2 {[%clk
0:00:27.5]} 41... Rg3 {[%clk 0:00:42]} 42. Kf2 {[%clk 0:00:27.1]} 42... Rc3
{[%clk 0:00:41.8]} 43. Ke2 {[%clk 0:00:25.6]} 43... Rc2+ {[%clk 0:00:33]} 44.
Kf3 {[%clk 0:00:24.6]} 44... Rc3+ {[%clk 0:00:32.7]} 45. Ke2 {[%clk 0:00:24.8]}
45... Ra3 {[%clk 0:00:32]} 46. Kf2 {[%clk 0:00:18.6]} 46... Rc3 {[%clk 0:00:28]}
47. Ke2 {[%clk 0:00:18]} 1/2-1/2

[Event "*** Titled Tuesday Blitz"]
[Site "Chess.com"]
[Date "2021.04.27"]
[Round "11"]
[White "Bigfish1995"]
[Black "DenLaz"]
[Result "1-0"]
[WhiteElo "2992"]
[BlackElo "2819"]
[TimeControl "180+1"]
[EndTime "12:04:11 PDT"]
[Termination "Bigfish1995 won by resignation"]

1. e4 {[%clk 0:01:25.5]} 1... e5 {[%clk 0:02:57.6]} 2. Nf3 {[%clk 0:01:25.6]}
2... Nc6 {[%clk 0:02:57.4]} 3. Bc4 {[%clk 0:01:25.6]} 3... Bc5 {[%clk
0:02:56.5]} 4. c3 {[%clk 0:01:25.4]} 4... Nf6 {[%clk 0:02:56.6]} 5. d4 {[%clk
0:01:25.7]} 5... exd4 {[%clk 0:02:55.7]} 6. e5 {[%clk 0:01:26.6]} 6... d5 {[%clk
0:02:55.1]} 7. Bb5 {[%clk 0:01:27.1]} 7... Ne4 {[%clk 0:02:55.1]} 8. cxd4 {[%clk
0:01:27.6]} 8... Bb6 {[%clk 0:02:53.3]} 9. Be3 {[%clk 0:01:25.5]} 9... O-O
{[%clk 0:02:53]} 10. h3 {[%clk 0:01:26]} 10... f6 {[%clk 0:02:42.7]} 11. Bxc6
{[%clk 0:01:21.1]} 11... bxc6 {[%clk 0:02:42.2]} 12. O-O {[%clk 0:01:21.8]}
12... fxe5 {[%clk 0:01:59.5]} 13. Nxe5 {[%clk 0:01:21.6]} 13... Qh4 {[%clk
0:01:58.5]} 14. Nd2 {[%clk 0:01:17.4]} 14... Ba6 {[%clk 0:01:36.1]} 15. Nxe4
{[%clk 0:01:06.7]} 15... Bxf1 {[%clk 0:01:34.5]} 16. Ng5 {[%clk 0:00:57.8]}
16... Ba6 {[%clk 0:01:18.5]} 17. Ng4 {[%clk 0:00:27.7]} 17... Kh8 {[%clk
0:01:04.5]} 18. Ne5 {[%clk 0:00:25.9]} 18... Kg8 {[%clk 0:00:49.2]} 19. a4
{[%clk 0:00:20.9]} 19... c5 {[%clk 0:00:16.4]} 20. dxc5 {[%clk 0:00:18.7]} 20...
d4 {[%clk 0:00:16.5]} 21. Qb3+ {[%clk 0:00:18.5]} 21... Kh8 {[%clk 0:00:13.8]}
22. Nef7+ {[%clk 0:00:17.8]} 22... Rxf7 {[%clk 0:00:12.5]} 23. Nxf7+ {[%clk
0:00:18.1]} 23... Kg8 {[%clk 0:00:13.3]} 24. Ng5+ {[%clk 0:00:11.6]} 24... Kh8
{[%clk 0:00:11.4]} 25. Qd5 {[%clk 0:00:09.8]} 25... Rf8 {[%clk 0:00:09.1]} 26.
Nf7+ {[%clk 0:00:09.3]} 26... Rxf7 {[%clk 0:00:08.5]} 27. Qxf7 {[%clk 0:00:09]}
27... h6 {[%clk 0:00:08.7]} 28. Qf8+ {[%clk 0:00:08]} 28... Kh7 {[%clk
0:00:08.6]} 29. Qf5+ {[%clk 0:00:08.3]} 29... Kh8 {[%clk 0:00:08]} 30. cxb6
{[%clk 0:00:08.6]} 30... dxe3 {[%clk 0:00:08.2]} 31. bxa7 {[%clk 0:00:08.8]}
31... Bb7 {[%clk 0:00:08.3]} 32. fxe3 {[%clk 0:00:08]} 32... Qg3 {[%clk
0:00:05.2]} 33. Qf2 {[%clk 0:00:08.5]} 33... Qg6 {[%clk 0:00:03.7]} 34. a8=Q+
{[%clk 0:00:07.9]} 34... Bxa8 {[%clk 0:00:04.2]} 35. Qf8+ {[%clk 0:00:08.2]} 1-0